{"text_format":"1","workbook":"xlsx","n_sheets":2,"sheets":["Partenza sistema","Unità misura e prezzi"],"not_rendered":{"charts":0,"images":1,"macros":1,"external_links":0,"defined_names":49,"comments":0,"pivot_tables":0},"unopened":[],"bounds":{"document_bytes":16777216,"sheet_cells":100000,"rows_first":2000,"rows_last":500,"rows_between":2000,"halvings":0,"cell_chars":16384,"cell_head_chars":4096},"cells_cut":0,"cells_raw":0,"read":"whole","date_system":"1900"}

{"sheet":"Partenza sistema","index":0,"n_rows":35,"n_cols":18,"rows_kept":35,"cut":false,"hidden":false,"merged":[[0,1,2,6],[33,0,33,6],[34,0,34,6],[31,3,31,5],[31,1,31,2],[17,0,17,2],[16,0,16,2],[18,0,18,2],[15,0,15,2],[8,0,13,6],[3,0,4,3],[3,6,7,6],[4,4,4,5],[16,11,16,13],[17,11,17,13],[30,0,30,6],[23,0,23,2],[19,0,19,2],[18,11,18,13]]}
[null,"Applicazione di partenza per sistema di isolamento a cappotto con base di partenza in PVC, rompigoccia ed elemento di giunzione"]
[]
[]
[]
[]
["Spessore del pannello"]
["120 mm - 180 mm "]
[]
["Fornitura e posa in opera di partenza per sistemi di isolamento a cappotto, realizzata mediante elemento in PVC da fissare al supporto, elementi di giunzione e terminale con rompigoccia munito di gocciolatoio e rete in fibra di vetro alcali resistente - tipo Base di partenza in PVC ed Elemento di giunzione di Kerakoll.\nIl prezzo è per metro lineare di partenza effettivamente posta in opera. E' altresì compresa la fornitura e posa in opera di tutti i materiali sopra descritti e quanto altro occorre per dare il lavoro finito. Sono esclusi: la preparazione del supporto, il materiale per la tassellatura mediante appositi tasselli da valutarsi in ragione della tipologia di supporto; il materiale per la rasatura; le indagini pre e post intervento; tutti i sussidi necessari per l'esecuzione dei lavori ricadenti all'interno dei costi della sicurezza indiretti."]
[]
[]
[]
[]
[]
["DESCRIZIONE",null,null,"U.M.","QUANTITA'","PREZZO UNITARIO*","PREZZO COMPLETO"]
["RISORSE UMANE (RU) "]
["Tassellatura della base di partenza, applicazione di giunzioni e rompigoccia",null,null,null,null,null,null,null,"OPERAIO QUALIFICATO (MO1003)",null,null,{"$f":"INDEX(lavorazioni_secondostrato,(VLOOKUP($B$1,lavorazioni_secondostrato,2,FALSE)+1),3)","v":{"$error":"#NAME?"}}]
[{"$f":"IF(A17=0,\"\",$I$17)","v":"OPERAIO QUALIFICATO (MO1003)"},null,null,{"$f":"IFERROR(VLOOKUP(A18,PRZ,2,FALSE),\"\")","v":"H/mq"},0.08,{"$f":"IFERROR(VLOOKUP(A18,PRZ,3,FALSE),\"\")","v":29.25},{"$f":"IFERROR(E18*F18,\"\")","v":2.34},null,null,null,null,{"$f":"IF(L17=0,\"\",$I$17)","v":{"$error":"#NAME?"}},null,null,{"$f":"IFERROR(VLOOKUP(L18,prezzi,2,FALSE),\"\")","v":""},{"$f":"IF(L18=$I$17,VLOOKUP(L17,#REF!,2,FALSE),IF(L18=$I$18,VLOOKUP(L16,#REF!,2,FALSE),\"\"))","v":{"$error":"#NAME?"}},{"$f":"IFERROR(VLOOKUP(L18,prezzi,3,FALSE),\"\")","v":""},{"$f":"IFERROR(P18*Q18,\"\")","v":""}]
[null,null,null,{"$f":"IFERROR(VLOOKUP(A19,prezzi,2,FALSE),\"\")","v":""},{"$f":"IF(A19=$I$17,VLOOKUP(#REF!,QTA,2,FALSE),\"\")","v":""},"sommano RU",{"$f":"SUM(G18:G18)","v":2.34},null,null,null,null,null,null,null,"",{"$f":"IF(L19=$I$17,VLOOKUP(#REF!,#REF!,2,FALSE),IF(L19=$I$18,VLOOKUP(#REF!,#REF!,2,FALSE),\"\"))","v":{"$error":"#REF!"}},"sommano RU",{"$f":"SUM(R18:R18)","v":0}]
["PRODOTTI DA COSTRUZIONE (PR) ",null,null,{"$f":"IFERROR(VLOOKUP(A20,prezzi,2,FALSE),\"\")","v":""}]
["Base di partenza PVC",{"$f":"A7","v":"120 mm - 180 mm "},null,"m/m",1,{"$f":"IFERROR(VLOOKUP(B21,PRZ,3,FALSE),\"\")","v":18.138000000000002},{"$f":" IFERROR(F21*E21,\"\")","v":18.138000000000002}]
["Elemento di giunzione","(un pezzo ogni 2,5 m di base di partenza) ",null,"n/m",0.4,{"$f":"IFERROR(VLOOKUP(A22,PRZ,3,FALSE),\"\")","v":0.19800000000000001},{"$f":" IFERROR(F22*E22,\"\")","v":7.9200000000000007E-2}]
[null,null,null,"",null,"sommano PR",{"$f":"SUM(G21:G22)","v":18.217200000000002}]
["ATTREZZATURE (AT) "]
["NOLO DI STRUMENTAZIONE DA CANTIERE",null,null,"H/m",0.01,8,{"$f":" F25*E25","v":0.08}]
["TRASPORTO MATERIALI DI CONSUMO",null,null,"kg/m",{"$f":"0.1","v":0.1},{"$f":"0.02","v":0.02},{"$f":" F26*E26","v":2E-3}]
[null,null,null,null,null,"sommano AT",{"$f":"SUM(G25:G26)","v":8.2000000000000003E-2}]
[null,null,null,null,null,"Costo Tecnico (CT)",{"$f":"SUM(G27,G23,G19)","v":20.639200000000002}]
[null,null,null,null,null,"Costo indiretto (SG) 17,00%",{"$f":"G28*0.17","v":3.5086640000000004}]
[null,null,null,null,null,"Costo figurativo (U) 10,00%",{"$f":"(G28+G29)*0.1","v":2.4147864000000006}]
["* Prezzi materiali Kerakoll = Listino 07-2025. Prezzi manodopera = Prezziario DEI (I Semestre 2025) - Media Nazionale."]
[null,"RU+PR+AT+SG+U",null," PREZZO COMPLESSIVO AL METRO",null,null,{"$f":"G28+G29+G30","v":26.562650400000003}]
[]
["Voce di capitolato "]
["Fornitura e posa in opera di partenza per sistemi di isolamento a cappotto, realizzato mediante base di partenza in alluminio, elementi di giunzione, e profilo in PVC sovraverniciabile munito di gocciolatoio e rete in fibra di vetro termosaldata - tipo Base di partenza, Elemento di giunzione e Rompigoccia per base di partenza di Kerakoll.\nL'intervento si svolge nelle seguenti fasi: \na) Tassellatura dell'elemento preforato al supporto mediante appositi tasselli da muro (materiale per la tassellatura da contabilizzare a parte)\nb) Incollaggio del primo corso di pannelli isolanti al supporto (materiali e lavorazione da contabilizzare a parte) \nc) Inserimento tra l'elemento preforato in PVC e la base del pannello isolante del Terminale con Rompigoccia e rete.\nLa valutazione è espressa per metro lineare di partenza effettivamente posta in opera."]

{"sheet":"Unità misura e prezzi","index":1,"n_rows":8,"n_cols":4,"rows_kept":8,"cut":false,"hidden":true,"merged":[]}
[]
[null,"Prodotto ","UM","Prezzo"]
[null,"OPERAIO QUALIFICATO (MO1003)","H/mq",29.25]
[null,"Base di partenza in PVC "]
[null,"80 mm - 140 mm ","m/m",13.664]
[null,"120 mm - 180 mm ","m/m",18.138000000000002]
[null,"160 mm - 240 mm ","m/m",22.923999999999999]
[null,"Elemento di giunzione","n/m",0.19800000000000001]